fUST/lending_fUST_20241024
["ID","MTS","AMOUNT","RATE_DAILY","PERIOD"]
[340737416,1729758502969,273.37336231,9.9e-05,2]
[340737417,1729758518188,273.37336231,9.9e-05,2]
[340737418,1729758534031,273.37336231,9.9e-05,2]
[340737419,1729758550534,273.37336231,9.9e-05,2]
[340737423,1729758566018,273.37336231,9.9e-05,2]
[340737477,1729758632463,-160.609006,0.00023477,2]
[340737479,1729758632473,-300.0,0.00023707,2]
[340737481,1729758632483,-300.0,0.00023707,2]
[340737483,1729758632492,-2439.22429128,0.00023708,2]
[340737486,1729758632508,-500.0,0.00023708,2]
[340737826,1729758638535,-665.92844153,0.00023708,2]
[340737860,1729758643423,-21294.84726719,0.00023708,2]
[340737862,1729758643433,-158.476299,0.00024362,2]
[340737864,1729758643443,-158.476299,0.00024468,2]
[340737866,1729758643454,-158.476299,0.00024574,2]
[340737869,1729758643463,-122.26689479,0.0002468,2]
[340737874,1729758643475,-36.20940421,0.0002468,2]
[340737876,1729758643484,-158.476299,0.00024785,2]
[340737878,1729758643494,-158.476299,0.00024891,2]
[340737880,1729758643503,-158.476299,0.00024997,2]
[340737882,1729758643513,-168.15308009,0.00025,2]
[340737884,1729758643523,-1512.9586137,0.00025,2]
[340738150,1729758765892,273.37336231,9.9e-05,2]
[340738151,1729758774343,273.37336231,9.9e-05,2]
[340738152,1729758783276,273.37336231,9.9e-05,2]
[340738199,1729759832688,-158.476299,0.00024937,2]
[340738200,1729759832697,-300.0,0.00024999,2]
[340738201,1729759832707,-300.0,0.00024999,2]
[340738202,1729759832717,-832.09696769,0.00025,2]
[340738203,1729759832729,-787.87493086,0.00025,2]
[340738204,1729759832740,-514.44600306,0.00025,2]
[340738205,1729759832967,-931.38397546,0.00025,2]
[340738264,1729759843581,-13430.00000002,0.00025,2]
[340738413,1729759974113,273.37336231,9.9e-05,2]
[340738414,1729759989603,273.37336231,9.9e-05,2]
[340738433,1729760900739,273.37336231,9.9e-05,2]
[340738434,1729760917107,273.37336231,9.9e-05,2]
[340738474,1729761033472,-204.890229,0.00021918,2]
[340738475,1729761033484,-160.609006,0.00023944,2]
[340738476,1729761033494,-170.066324,0.00024171,2]
[340738477,1729761033504,-2234.434441,0.00024204,2]
[340738523,1729761038850,-4305.95585067,0.00024204,2]
[340738524,1729761038861,-1738.60287733,0.00024204,2]
[340738525,1729761038871,-195.2188664,0.00024233,2]
[340738526,1729761038880,-782.823228,0.0002425,2]
[340738527,1729761038889,-158.476299,0.00024259,2]
[340738528,1729761038898,-158.476299,0.00024575,2]
[340738529,1729761038907,-158.476299,0.00024891,2]
[340738530,1729761038916,-385.1401021,0.000249,2]
[340738531,1729761038926,-11436.63795021,0.00025,2]
[340738532,1729761038935,-153.5822275,0.00025052,2]
[340738533,1729761038945,-158.476299,0.00025208,2]
[340738534,1729761038954,-199.02963856,0.00025437,2]
[340738535,1729761038964,-2007.0,0.00025519,30]
[340738536,1729761038973,-158.476299,0.00025524,2]
[340738537,1729761038982,-153.0,0.00025753,2]
[340738538,1729761038992,-1183.25915281,0.00025815,2]
[340738539,1729761039001,-193.98,0.00025905,3]
[340738540,1729761039010,-1284.57,0.00025905,10]
[340738541,1729761039019,-581.95,0.00025905,3]
[340738542,1729761039028,-151.0,0.00025913,7]
[340738544,1729761039038,-536.616839,0.00025913,7]
[340738546,1729761039047,-309.699468,0.00025913,7]
[340738549,1729761039064,-536.616839,0.00025913,7]
[340738551,1729761039073,-589.58074,0.00025913,7]
[340738553,1729761039084,-152.240779,0.00025913,7]
[340738555,1729761039094,-309.699468,0.00025913,7]
[340738556,1729761039103,-589.58074,0.00025913,7]
[340738558,1729761039112,-151.753519,0.00025913,7]
[340738560,1729761039122,-1849.78,0.00025913,10]
[340738562,1729761039131,-387.95,0.00025913,3]
[340738564,1729761039140,-1541.48,0.00025913,10]
[340738566,1729761039150,-168.1530801,0.00025915,2]
[340738567,1729761039159,-158.501364,0.00025915,7]
[340738568,1729761039168,-151.0,0.00025915,7]
[340738569,1729761039178,-151.0,0.00025915,7]
[340738570,1729761039188,-151.0,0.00025915,7]
[340738571,1729761039197,-151.0,0.00025915,7]
[340738572,1729761039206,-1694.85509,0.00025915,7]
[340738573,1729761039216,-151.0,0.00025915,7]
[340738574,1729761039225,-1694.85509,0.00025915,7]
[340738575,1729761039235,-158.607473,0.00025915,7]
[340738576,1729761039244,-1294.201519,0.00025915,7]
[340738577,1729761039254,-1294.201519,0.00025915,7]
[340738578,1729761039264,-151.0,0.00025915,7]
[340738579,1729761039273,-151.0,0.00025915,7]
[340738580,1729761039282,-151.0,0.00025915,7]
[340738581,1729761039291,-764.33862,0.00025915,7]
[340738582,1729761039304,-764.33862,0.00025915,7]
[340738583,1729761039315,-151.0,0.00025915,7]
[340738584,1729761039324,-151.0,0.00025915,7]
[340738585,1729761039333,-151.0,0.00025915,7]
[340738586,1729761039343,-151.0,0.00025915,7]
[340738587,1729761039352,-151.0,0.00025915,7]
[340738588,1729761039362,-256.997293,0.00025915,7]
[340738589,1729761039372,-256.997293,0.00025915,7]
[340738590,1729761039381,-256.997293,0.00025915,7]
[340738591,1729761039390,-229.249368,0.00025915,7]
[340738592,1729761039403,-256.997293,0.00025915,7]
[340738593,1729761039412,-229.249368,0.00025915,7]
[340738594,1729761039421,-256.997293,0.00025915,7]
[340738595,1729761039431,-256.997293,0.00025915,7]
[340738596,1729761039441,-256.997293,0.00025915,7]
[340738597,1729761039450,-256.997293,0.00025915,7]
[340738598,1729761039459,-229.249368,0.00025915,7]
[340738599,1729761039469,-229.249368,0.00025915,7]
[340738600,1729761039478,-3193.773163,0.00025915,7]
[340738601,1729761039487,-3193.773163,0.00025915,7]
[340738602,1729761039497,-151.0,0.00025915,7]
[340738603,1729761039507,-151.0,0.00025915,7]
[340738604,1729761039516,-151.0,0.00025915,7]
[340738605,1729761039525,-151.0,0.00025915,7]
[340738606,1729761039534,-3193.773163,0.00025915,7]
[340738607,1729761039543,-3193.773163,0.00025915,7]
[340738608,1729761039554,-151.0,0.00025915,7]
[340738609,1729761039563,-151.0,0.00025915,7]
[340738610,1729761039571,-151.0,0.00025915,7]
[340738611,1729761039580,-152.31115,0.00025915,7]
[340738612,1729761039590,-151.0,0.00025915,7]
[340738613,1729761039599,-151.0,0.00025915,7]
[340738614,1729761039609,-151.0,0.00025915,7]
[340738615,1729761039619,-151.0,0.00025915,7]
[340738616,1729761039628,-151.0,0.00025915,7]
[340738617,1729761039637,-151.0,0.00025915,7]
[340738618,1729761039646,-151.0,0.00025915,7]
[340738619,1729761039655,-151.0,0.00025915,7]
[340738620,1729761039665,-4519.385492,0.00025915,7]
[340738621,1729761039674,-4519.385492,0.00025915,7]
[340738622,1729761039683,-4519.385492,0.00025915,7]
[340738623,1729761039692,-4519.385492,0.00025915,7]
[340738624,1729761039701,-277.656644,0.00025915,7]
[340738625,1729761039711,-277.656644,0.00025915,7]
[340738626,1729761039720,-277.656644,0.00025915,7]
[340738627,1729761039729,-277.656644,0.00025915,7]
[340738628,1729761039738,-277.656644,0.00025915,7]
[340738629,1729761039747,-277.656644,0.00025915,7]
[340738630,1729761039756,-277.656644,0.00025915,7]
[340738631,1729761039766,-277.656644,0.00025915,7]
[340738632,1729761039775,-151.0,0.00025915,7]
[340738633,1729761039786,-151.0,0.00025915,7]
[340738634,1729761039795,-151.0,0.00025915,7]
[340738635,1729761039806,-151.0,0.00025915,7]
[340738636,1729761039815,-151.0,0.00025915,7]
[340738637,1729761039825,-151.0,0.00025915,7]
[340738638,1729761039834,-151.0,0.00025915,7]
[340738639,1729761039843,-242.413999,0.00025915,7]
[340738640,1729761039852,-536.616839,0.00025915,7]
[340738641,1729761039862,-536.616839,0.00025915,7]
[340738642,1729761039871,-536.616839,0.00025915,7]
[340738643,1729761039880,-536.616839,0.00025915,7]
[340738644,1729761039889,-536.616839,0.00025915,7]
[340738645,1729761039899,-309.699468,0.00025915,7]
[340738646,1729761039909,-536.616839,0.00025915,7]
[340738647,1729761039918,-309.699468,0.00025915,7]
[340738648,1729761039928,-536.616839,0.00025915,7]
[340738649,1729761039937,-309.699468,0.00025915,7]
[340738650,1729761039946,-536.616839,0.00025915,7]
[340738651,1729761039955,-309.699468,0.00025915,7]
[340738652,1729761039965,-309.699468,0.00025915,7]
[340738653,1729761039974,-309.699468,0.00025915,7]
[340738654,1729761039983,-309.699468,0.00025915,7]
[340738655,1729761039994,-536.616839,0.00025915,7]
[340738656,1729761040003,-309.699468,0.00025915,7]
[340738657,1729761040012,-536.616839,0.00025915,7]
[340738658,1729761040022,-589.58074,0.00025915,7]
[340738659,1729761040031,-536.616839,0.00025915,7]
[340738660,1729761040041,-589.58074,0.00025915,7]
[340738661,1729761040051,-536.616839,0.00025915,7]
[340738662,1729761040061,-589.58074,0.00025915,7]
[340738663,1729761040071,-536.616839,0.00025915,7]
[340738664,1729761040080,-589.58074,0.00025915,7]
[340738665,1729761040089,-536.616839,0.00025915,7]
[340738666,1729761040099,-309.699468,0.00025915,7]
[340738667,1729761040109,-589.58074,0.00025915,7]
[340738668,1729761040119,-536.616839,0.00025915,7]
[340738669,1729761040129,-309.699468,0.00025915,7]
[340738670,1729761040139,-589.58074,0.00025915,7]
[340738671,1729761040148,-536.616839,0.00025915,7]
[340738672,1729761040158,-309.699468,0.00025915,7]
[340738673,1729761040169,-589.58074,0.00025915,7]
[340738674,1729761040178,-309.699468,0.00025915,7]
[340738675,1729761040188,-589.58074,0.00025915,7]
[340738676,1729761040199,-309.699468,0.00025915,7]
[340738677,1729761040208,-309.699468,0.00025915,7]
[340738678,1729761040218,-309.699468,0.00025915,7]
[340738679,1729761040227,-589.58074,0.00025915,7]
[340738680,1729761040236,-309.699468,0.00025915,7]
[340738681,1729761040246,-589.58074,0.00025915,7]
[340738682,1729761040255,-589.58074,0.00025915,7]
[340738684,1729761040264,-589.58074,0.00025915,7]
[340738685,1729761040274,-589.58074,0.00025915,7]
[340738686,1729761040283,-589.58074,0.00025915,7]
[340738694,1729761040490,-589.58074,0.00025915,7]
[340738696,1729761040500,-589.58074,0.00025915,7]
[340738698,1729761040510,-151.0,0.00025915,7]
[340738699,1729761040520,-151.0,0.00025915,7]
[340738700,1729761040530,-151.0,0.00025915,7]
[340738701,1729761040540,-151.0,0.00025915,7]
[340738702,1729761040549,-151.0,0.00025915,7]
[340738703,1729761040558,-151.0,0.00025915,7]
[340738704,1729761040568,-151.0,0.00025915,7]
[340738705,1729761040580,-151.0,0.00025915,7]
[340738706,1729761040589,-151.0,0.00025915,7]
[340738707,1729761040598,-151.0,0.00025915,7]
[340738708,1729761040608,-151.0,0.00025915,7]
[340738709,1729761040617,-151.0,0.00025915,7]
[340738710,1729761040627,-287.354485,0.00025915,7]
[340738711,1729761040639,-151.0,0.00025915,7]
[340738712,1729761040648,-151.0,0.00025915,7]
[340738714,1729761040657,-151.0,0.00025915,7]
[340738716,1729761040667,-500.0,0.00025922,2]
[340738718,1729761040677,-500.0,0.00025922,2]
[340738720,1729761040686,-500.0,0.00025922,2]
[340738721,1729761040695,-500.08632951,0.00025922,2]
[340738724,1729761040707,-500.0,0.00025922,2]
[340738725,1729761040717,-500.0,0.00025922,2]
[340738726,1729761040727,-500.0,0.00025922,2]
[340738727,1729761040736,-500.0,0.00025922,2]
[340738728,1729761040746,-500.0,0.00025922,2]
[340738729,1729761040755,-500.0,0.00025922,2]
[340738730,1729761040765,-500.0,0.00025922,2]
[340738731,1729761040774,-500.0,0.00025922,2]
[340738732,1729761040785,-500.0,0.00025922,2]
[340738733,1729761040794,-500.0,0.00025922,2]
[340738734,1729761040805,-500.0,0.00025922,2]
[340738735,1729761040815,-500.0,0.00025922,2]
[340738736,1729761040824,-357.46448223,0.00025922,2]
[340738737,1729761040834,-500.0,0.00025922,2]
[340738738,1729761040844,-500.0,0.00025922,2]
[340738739,1729761040854,-500.0,0.00025922,2]
[340738740,1729761040863,-500.0,0.00025922,2]
[340738741,1729761040873,-500.0,0.00025922,2]
[340738742,1729761040882,-500.0,0.00025922,2]
[340738743,1729761040891,-500.0,0.00025922,2]
[340738744,1729761040900,-500.0,0.00025922,2]
[340738745,1729761040909,-500.0,0.00025922,2]
[340738746,1729761040919,-500.0,0.00025922,2]
[340738747,1729761040929,-500.0,0.00025922,2]
[340738748,1729761040938,-500.0,0.00025922,2]
[340738749,1729761040948,-500.0,0.00025922,2]
[340738750,1729761040957,-500.0,0.00025922,2]
[340738751,1729761040966,-500.0,0.00025922,2]
[340738752,1729761040976,-500.0,0.00025922,2]
[340738753,1729761040986,-500.0,0.00025922,2]
[340738754,1729761040995,-500.0,0.00025922,2]
[340738755,1729761041006,-500.0,0.00025922,2]
[340738756,1729761041018,-500.0,0.00025922,2]
[340738757,1729761041029,-500.0,0.00025922,2]
[340738758,1729761041039,-500.0,0.00025922,2]
[340738759,1729761041048,-500.0,0.00025922,2]
[340738760,1729761041058,-500.0,0.00025922,2]
[340738761,1729761041068,-500.0,0.00025922,2]
[340738762,1729761041077,-500.0,0.00025922,2]
[340738763,1729761041087,-500.0,0.00025922,2]
[340738764,1729761041099,-500.0,0.00025922,2]
[340738765,1729761041110,-500.0,0.00025922,2]
[340738766,1729761041120,-500.0,0.00025922,2]
[340738767,1729761041130,-37640.4961128,0.00025923,4]
[340738768,1729761041139,-87063.6097953,0.00025923,4]
[340738769,1729761041149,-536.616839,0.00025923,7]
[340738770,1729761041159,-309.699468,0.00025923,7]
[340738771,1729761041168,-536.61683278,0.00025923,7]
[340738772,1729761041177,-589.58074,0.00025923,7]
[340738773,1729761041187,-309.69946,0.00025923,7]
[340738774,1729761041197,-589.580738,0.00025923,7]
[340738775,1729761041206,-18820.2480564,0.00025924,4]
[340738776,1729761041215,-4769.89886153,0.00025924,4]
[340738777,1729761041338,-1001.42386275,0.00025905,10]
[340738778,1729761041350,-69.04613725,0.00025905,10]
[340738779,1729761041359,-151.0,0.00025915,7]
[340738780,1729761041369,-151.0,0.00025915,7]
[340738781,1729761041379,-87.27886975,0.00025915,7]
[340738809,1729761046680,-199.02963855,0.00024999,2]
[340738810,1729761046690,-63.72113025,0.00025915,7]
[340738811,1729761046700,-151.0,0.00025915,7]
[340738812,1729761046709,-151.0,0.00025915,7]
[340738814,1729761046718,-151.0,0.00025915,7]
[340738816,1729761046727,-151.0,0.00025915,7]
[340738818,1729761046737,-151.0,0.00025915,7]
[340738820,1729761046746,-151.0,0.00025915,7]
[340738822,1729761046756,-151.0,0.00025915,7]
[340738824,1729761046765,-38761.90603617,0.00025924,4]
[340738826,1729761046775,-151.0,0.00025925,7]
[340738829,1729761046785,-151.0,0.00025925,7]
[340738831,1729761046794,-151.0,0.00025925,7]
[340738832,1729761046803,-167.561621,0.00025925,7]
[340738835,1729761046812,-151.0,0.00025925,7]
[340738837,1729761046822,-1694.85509,0.00025925,7]
[340738839,1729761046831,-151.0,0.00025925,7]
[340738841,1729761046841,-1694.85509,0.00025925,7]
[340738843,1729761046852,-186.484114,0.00025925,7]
[340738845,1729761046862,-1694.85509,0.00025925,7]
[340738847,1729761046871,-1694.85509,0.00025925,7]
[340738849,1729761046881,-1294.201519,0.00025925,7]
[340738850,1729761046890,-1294.201519,0.00025925,7]
[340738852,1729761046899,-1294.201519,0.00025925,7]
[340738854,1729761046908,-1294.201519,0.00025925,7]
[340738856,1729761046916,-151.0,0.00025925,7]
[340738858,1729761046926,-151.0,0.00025925,7]
[340738860,1729761046935,-151.0,0.00025925,7]
[340738862,1729761046945,-151.0,0.00025925,7]
[340738864,1729761046955,-151.0,0.00025925,7]
[340738867,1729761046964,-151.0,0.00025925,7]
[340738869,1729761046976,-151.0,0.00025925,7]
[340738871,1729761046986,-151.0,0.00025925,7]
[340738873,1729761046996,-156.486722,0.00025925,7]
[340738875,1729761047005,-764.33862,0.00025925,7]
[340738877,1729761047014,-764.33862,0.00025925,7]
[340738879,1729761047023,-764.33862,0.00025925,7]
[340738880,1729761047032,-764.33862,0.00025925,7]
[340738882,1729761047041,-764.33862,0.00025925,7]
[340738884,1729761047051,-764.33862,0.00025925,7]
[340738885,1729761047060,-220.541767,0.00025925,7]
[340738887,1729761047070,-151.0,0.00025925,7]
[340738889,1729761047079,-151.0,0.00025925,7]
[340738891,1729761047088,-151.0,0.00025925,7]
[340738892,1729761047099,-151.0,0.00025925,7]
[340738893,1729761047108,-151.0,0.00025925,7]
[340738894,1729761047117,-154.402253,0.00025925,7]
[340738895,1729761047126,-256.997293,0.00025925,7]
[340738896,1729761047135,-256.997293,0.00025925,7]
[340738897,1729761047144,-256.997293,0.00025925,7]
[340738898,1729761047153,-229.249368,0.00025925,7]
[340738899,1729761047163,-229.249368,0.00025925,7]
[340738900,1729761047172,-256.997293,0.00025925,7]
[340738901,1729761047182,-229.249368,0.00025925,7]
[340738902,1729761047191,-256.997293,0.00025925,7]
[340738903,1729761047200,-229.249368,0.00025925,7]
[340738904,1729761047210,-256.997293,0.00025925,7]
[340738905,1729761047219,-229.249368,0.00025925,7]
[340738906,1729761047229,-229.249368,0.00025925,7]
[340738907,1729761047238,-229.249368,0.00025925,7]
[340738908,1729761047248,-256.997293,0.00025925,7]
[340738909,1729761047257,-256.997293,0.00025925,7]
[340738910,1729761047267,-256.997293,0.00025925,7]
[340738911,1729761047276,-3193.773163,0.00025925,7]
[340738912,1729761047286,-256.997293,0.00025925,7]
[340738913,1729761047295,-229.249368,0.00025925,7]
[340738914,1729761047304,-3193.773163,0.00025925,7]
[340738915,1729761047316,-3193.773163,0.00025925,7]
[340738916,1729761047326,-229.249368,0.00025925,7]
[340738917,1729761047336,-229.249368,0.00025925,7]
[340738918,1729761047346,-256.997293,0.00025925,7]
[340738919,1729761047356,-151.0,0.00025925,7]
[340738920,1729761047366,-229.249368,0.00025925,7]
[340738921,1729761047375,-256.997298,0.00025925,7]
[340738922,1729761047385,-3193.773163,0.00025925,7]
[340738923,1729761047395,-229.249368,0.00025925,7]
[340738924,1729761047407,-151.0,0.00025925,7]
[340738925,1729761047418,-3193.773163,0.00025925,7]
[340738926,1729761047428,-49.31163783,0.00025925,7]
[340738936,1729761761381,1974.12800488,0.00016,2]
[340738953,1729762122729,21196.53525692,0.0001,2]
[340738975,1729762239273,-185.133764,0.00021918,2]
[340738976,1729762239283,-253.38349247,0.00025745,2]
[340738980,1729762239997,-481.070003,0.00025745,2]
[340738981,1729762240031,-3416.73071113,0.00025745,2]
[340738982,1729762240041,-1069.4942535,0.00025792,2]
[340738983,1729762240051,-321.18,0.00025882,3]
[340738984,1729762240061,-160.59,0.00025882,3]
[340738985,1729762240071,-481.79,0.00025882,3]
[340738986,1729762240081,-1021.24,0.00025882,10]
[340738987,1729762240092,-168.1530801,0.00025892,2]
[340738988,1729762240101,-20590.19567915,0.00025892,3]
[340739626,1729763370105,1576.80403476,0.00016,2]
[340739686,1729763438159,-185.133764,0.00021918,2]
[340739688,1729763438170,-181.2510242,0.00024576,2]
[340739690,1729763438179,-173.635062,0.00024696,2]
[340739692,1729763438190,-160.609006,0.0002482,2]
[340739695,1729763438200,-1978.20389643,0.00025,30]
[340739697,1729763438217,-344.06177139,0.00025,30]
[340739713,1729763438361,-1702.83717477,0.00025,30]
[340739715,1729763438371,-153.0,0.00025252,2]
[340739717,1729763438381,-153.0,0.00025252,2]
[340739719,1729763438392,-173.635062,0.0002534,2]
[340739720,1729763438401,-349.0,0.0002541,7]
[340739721,1729763438411,-3998.95376874,0.00025493,2]
[340739722,1729763438420,-3068.94853364,0.00025493,2]
[340739723,1729763438430,-153.0,0.000256,2]
[340739724,1729763438439,-153.0,0.000256,2]
[340739725,1729763438449,-1369.12383431,0.0002574,7]
[340739726,1729763438457,-3320.9473654,0.00025745,2]
[340739727,1729763438467,-935.80747183,0.00025759,2]
[340739728,1729763438476,-1084.56,0.0002584,3]
[340739729,1729763438486,-542.28,0.0002584,3]
[340739730,1729763438496,-271.14,0.0002584,3]
[340739731,1729763438505,-813.47,0.0002584,3]
[340739732,1729763438515,-1409.88,0.0002584,10]
[340739733,1729763438524,-1174.9,0.0002584,10]
[340739734,1729763438533,-500.0,0.00025849,2]
[340739735,1729763438542,-500.0,0.00025849,2]
[340739736,1729763438551,-500.0,0.00025849,2]
[340739737,1729763438561,-500.0,0.00025849,2]
[340739738,1729763438570,-500.0,0.00025849,2]
[340739739,1729763438582,-500.0,0.00025849,2]
[340739740,1729763438595,-500.0,0.00025849,2]
[340739741,1729763438608,-500.0,0.00025849,2]
[340739742,1729763438617,-500.0,0.00025849,2]
[340739743,1729763438627,-500.0,0.00025849,2]
[340739744,1729763438637,-500.0,0.00025849,2]
[340739745,1729763438647,-500.0,0.00025849,2]
[340739746,1729763438656,-500.0,0.00025849,2]
[340739747,1729763438666,-500.0,0.00025849,2]
[340739748,1729763438678,-500.0,0.00025849,2]
[340739749,1729763438688,-500.0,0.00025849,2]
[340739750,1729763438699,-500.0,0.00025849,2]
[340739751,1729763438709,-500.0,0.00025849,2]
[340739752,1729763438718,-500.0,0.00025849,2]
[340739753,1729763438728,-500.0,0.00025849,2]
[340739754,1729763438741,-500.0,0.00025849,2]
[340739755,1729763438750,-500.0,0.00025849,2]
[340739756,1729763438761,-500.0,0.00025849,2]
[340739757,1729763438772,-500.0,0.00025849,2]
[340739758,1729763438784,-500.0,0.00025849,2]
[340739759,1729763438794,-500.0,0.00025849,2]
[340739760,1729763438805,-500.0,0.00025849,2]
[340739761,1729763438814,-500.0,0.00025849,2]
[340739762,1729763438824,-500.0,0.00025849,2]
[340739763,1729763438833,-500.0,0.00025849,2]
[340739764,1729763438845,-500.0,0.00025849,2]
[340739765,1729763438855,-500.0,0.00025849,2]
[340739766,1729763438864,-500.0,0.00025849,2]
[340739767,1729763438874,-500.0,0.00025849,2]
[340739768,1729763438883,-500.0,0.00025849,2]
[340739769,1729763438893,-500.0,0.00025849,2]
[340739770,1729763438903,-500.0,0.00025849,2]
[340739771,1729763438913,-500.0,0.00025849,2]
[340739772,1729763438923,-500.0,0.00025849,2]
[340739773,1729763438932,-500.0,0.00025849,2]
[340739774,1729763438941,-14967.701064,0.00025849,3]
[340739775,1729763438952,-2690.334855,0.0002585,3]
[340739782,1729763440282,-3383.19517175,0.0002585,3]
[340739783,1729763440294,-644.87012437,0.0002585,3]
[340739799,1729763444608,-530.61729536,0.0002585,3]
[340739865,1729764635786,-160.609006,0.00023986,2]
[340739866,1729764635796,-433.0625282,0.00024318,2]
[340739867,1729764635807,-106.72966901,0.0002465,3]
[340739875,1729764638491,-225.27033099,0.0002465,3]
[340739876,1729764638502,-177.325968,0.00024693,2]
[340739877,1729764638512,-177.325968,0.00024816,2]
[340739878,1729764638522,-144.69984499,0.00025282,2]
[340739884,1729764640374,-28.93521701,0.00025282,2]
[340739885,1729764640385,-746.69,0.000253,3]
[340739886,1729764640394,-2303.55473281,0.00025745,2]
[340739887,1729764640407,-353.20315939,0.00025745,2]
[340739888,1729764640417,-979.08,0.00025811,10]
[340739889,1729764640426,-815.9,0.00025811,10]
[340739890,1729764640436,-632.66,0.00025811,3]
[340739891,1729764640445,-98.7049954,0.0002582,3]
[340739899,1729764643364,-267.01,0.00025811,10]
[340739906,1729764646200,-412.91,0.00025811,10]
[340739907,1729764646211,-12117.79687644,0.0002582,3]
[340739908,1729764646223,-1640.36326666,0.0002582,3]
[340739909,1729764646232,-1888.93971204,0.0002582,4]
[340740002,1729765738202,38861.3908219,0.0001,2]
[340740042,1729765832415,-3243.1895802,0.00024525,2]
[340740043,1729765832425,-317.0,0.0002465,3]
[340740044,1729765832434,-173.732426,0.00024797,2]
[340740045,1729765832444,-500.0,0.00025,2]
[340740046,1729765832453,-500.0,0.00025,2]
[340740047,1729765832463,-500.0,0.00025,2]
[340740048,1729765832473,-500.0,0.00025,2]
[340740049,1729765832483,-272.32,0.00025,2]
[340740050,1729765832493,-173.732426,0.00025228,2]
[340740051,1729765832502,-7281.69732151,0.00025274,2]
[340740052,1729765832511,-150.359137,0.000253,2]
[340740053,1729765832523,-173.732426,0.00025659,2]
[340740054,1729765832533,-818.83153779,0.00025689,2]
[340740055,1729765832545,-1000.0,0.00025712,2]
[340740056,1729765832555,-2125.4063138,0.00025745,2]
[340740057,1729765832564,-527.21,0.00025768,3]
[340740058,1729765832573,-263.61,0.00025768,3]
[340740059,1729765832582,-790.84,0.00025768,3]
[340740060,1729765832592,-327.89,0.00025768,10]
[340740061,1729765832604,-511.95,0.00025768,10]
[340740062,1729765832614,-426.63,0.00025768,10]
[340740063,1729765832623,-37235.35597953,0.00025772,3]
[340740071,1729765838559,-1551.13000235,0.00025772,3]
[340740074,1729765840515,-427.63664462,0.00025772,3]
[340740128,1729766301860,5000.0,0.00016,2]
[340740132,1729766408952,164.0,0.00022,60]
[340740183,1729767032659,-160.609006,0.00023539,2]
[340740185,1729767032669,-300.0,0.00023779,2]
[340740187,1729767032678,-300.0,0.00023779,2]
[340740189,1729767032688,-16372.32706552,0.0002378,2]
[340740264,1729767038751,-8507.67293448,0.0002378,2]
[340740265,1729767038760,-190.7694,0.00023959,2]
[340740266,1729767038770,-301.0,0.0002465,3]
[340740267,1729767038779,-185.5490106,0.00024888,2]
[340740268,1729767038789,-2909.32427475,0.00024889,2]
[340740269,1729767038830,-3937.07603163,0.00024889,2]
[340740270,1729767038840,-759.90203122,0.000249,2]
[340740271,1729767038849,-715.58,0.00025,2]
[340740272,1729767038858,-190.7694,0.00025207,2]
[340740273,1729767038867,-715.58,0.000254,3]
[340740274,1729767038878,-1000.0,0.00025667,2]
[340740275,1729767038890,-264.99,0.00025718,10]
[340740277,1729767038902,-311.36,0.00025718,10]
[340740279,1729767038913,-259.46,0.00025718,10]
[340740280,1729767038924,-263.6,0.00025719,3]